Workbook

Sheet Introduction
A1: FROM: | B1: Mark Biegert
A2: SUBJECT: | B2: Introduction
A3: DATE: | B3: 2016-10-26
A6: Abstract
A18: Index
B19: Heat Recovery Worksheet | C19: This sheet allows you to select from four scenarios that will illustrate the effect of insulation and ventilation.
B20: Scenario List | C20: This sheet contains my list of scenarios
B21: Cross Check | C21: This sheet contains my check computations to verify that my Excel formulas closely match web sources for
C22: critical parameters like density and specific humidity.
A24: References
B25: These links provided tools I used to cross-check my functions.
B26: Link | C26: Psychometric calculator used for cross-check
B27: Link | C27: Second psychometric calculator used for cross-check
B28: Link | C28: Good article on heat recovery ventilators and a worked example
B29: Link | C29: Excellent forum post on modeling heat recovery ventilators
B30: Link | C30: Earlier blog post of mine on a related topic

Sheet Heat_Recovery
A1: FROM: | B1: Mark Biegert
A2: SUBJECT: | B2: Garage Insulation Option Evaluation
A3: DATE: | B3: 2016-10-26
C4: ↓
A5: Constants
B7: Constant | C7: Symbol | D7: Value | E7: Unit
B8: Universal Gas Constant | C8: R_d | D8: 8.314472 | E8: J/mol K
B9: Molar Mass of Air | C9: MW_air | D9: 28.9664 | E9: gm/mol
B10: Molar Mass of H2O | C10: MW_H2O | D10: 18.01528 | E10: gm/mol
B11: Air Pressure | C11: p_Air | D11: 1 | E11: atm
B12: Epsilon | C12: eps | D12: =MW_H2O/MW_air -> 0.621937141 | E12: unitless
A14: Simulation Parameters
B16: Parameters | C16: Symbol | D16: Value | E16: Unit
B17: Room Temperature | C17: T_R | D17: 65 | E17: °F
B18: Outside Temperature | C18: T_O | D18: 10 | E18: °F
B19: Room Humidity | C19: RH_R | D19: 0.3 | E19: unitless
B20: Outside Humidity | C20: RH_O | D20: 0.1 | E20: unitless
B21: Recovery Efficiency | C21: e_Rec | D21: 0 | E21: unitless
B22: Heating Efficiency | C22: e_Heat | D22: 0.8 | E22: unitless
B23: Air Chg. Rate @ 50Pa | C23: ACH50 | D23: 10 | E23: per hour
B24: House Area | C24: A_House | D24: 2500 | E24: ft2
B25: Ceiling Height | C25: h_ceiling | D25: 8.22857 | E25: ft
B26: Natural Gas Cost | C26: k_Rate | D26: 1.5 | E26: per therm
B27: Fan Flow Rate | C27: F_fan | D27: 100 | E27: cfm
B28: Vent. Air Chg. Rate | C28: ACH_v | D28: 0.35 | E28: per hour
A30: Air Characteristics
B32: Parameter | C32: House | D32: Outside | E32: Units
B33: Dry Air Density | C33: =CONVERT(p_Air,"atm","Pa")*MW_air/(R_d*((T_R-32)*5/9+273.15))*0.001 -> 1.211051839 | D33: =CONVERT(p_Air,"atm","Pa")*MW_air/(R_d*((T_O-32)*5/9+273.15))*0.001 -> 1.352870246 | E33: gm/cm3
B34: Sat Vapor Pressure | C34: =6.1094*EXP(17.625*CONVERT(T_R,"F","C")/(243.04+CONVERT(T_R,"F","C")))*100 -> 2103.288257 | D34: =6.1094*EXP(17.625*CONVERT(T_O,"F","C")/(243.04+CONVERT(T_O,"F","C")))*100 -> 240.2602873 | E34: Pa
B35: Moist Air Density | C35: =C33*(1-0.378*RH_R*C34/CONVERT(p_Air,"atm","Pa")) -> 1.208201097 | D35: =D33*(1-0.378*RH_O*D34/CONVERT(p_Air,"atm","Pa")) -> 1.352748987 | E35: gm/cm3
B36: Dew Temperature | C36: =-(5354475*(T_R-32)*5/9+73835552*LN(RH_R)+303800*(T_R-32)*5/9*LN(RH_R))/ (303800*LN(RH_R)+1250*(T_R-32)*5/9*LN(RH_R)-5354475) -> 0.4460204763 | D36: =-(5354475*(T_O-32)*5/9+73835552*LN(RH_O)+303800*(T_O-32)*5/9*LN(RH_O))/ (303800*LN(RH_O)+1250*(T_O-32)*5/9*LN(RH_O)-5354475) -> -37.69948199 | E36: °C
B37: Vapor Pressure @ Dew | C37: =6.1094*EXP(17.625*C36/(243.04+C36))*100 -> 630.986477 | D37: =6.1094*EXP(17.625*D36/(243.04+D36))*100 -> 24.02602873 | E37: Pa
B38: Specific Humidity | C38: =eps*C37/(CONVERT(p_Air,"atm","Pa")-(1-eps)*C37) -> 0.003882161609 | D38: =eps*D37/(CONVERT(p_Air,"atm","Pa")-(1-eps)*D37) -> 0.0001474860033 | E38: unitless
B39: Moist Air Enthalpy | C39: =1.006*(T_R-32)*5/9+C38*(2501+1.755*(T_R-32)*5/9) -> 28.27752807 | D39: =1.006*(T_O-32)*5/9+D38*(2501+1.755*(T_O-32)*5/9) -> -11.92985664 | E39: kJ/kg
A41: House Parameters
B43: Parameter | C43: Symbol | D43: Value | E43: Unit
B44: House Volume | C44: V_house | D44: =A_House*D25 -> 20571.425 | E44: ft3
A46: Air Flow Rates
B48: Ventilation Parameter | C48: Value | D48: Unit
B49: Daily On-Time | C49: 1 | D49: hour
B50: Fan Air Changes/Hour | C50: =60*F_fan*(C49/24)/V_house -> 0.01215277989 | D50: per hour
B51: Nat. Air Changes/Hour | C51: =ACH50_/20 -> 0.5 | D51: per hour
B52: Vent. Air Chg./Hour | C52: =ACH_v -> 0.35 | D52: per hour
B53: Act. Air Chg./Hour | C53: =C50+C51+C52*(1-e_Rec) -> 0.8621527799 | D53: per hour
A55: Heat Losses
B56: Wall R-value | C56: 18 | D56: ft2*Δ°F*hr/BTU
B57: Ceiling R-value | C57: 38 | D57: ft2*Δ°F*hr/BTU
B59: Outside Facing Surfaces | C59: Areas | D59: R Values | E59: Heat Flow (BTU/hour)
B60: Wall 1 | C60: =10*60 -> 600 | D60: =Wall_R_value -> 18 | E60: =(C60-C65)/D60*(T_R-T_O) -> 1805.833333
B61: Wall 2 | C61: =10*60 -> 600 | D61: =Wall_R_value -> 18 | E61: 1778.333333
B62: Wall 3 | C62: =10*30 -> 300 | D62: =Wall_R_value -> 18 | E62: 867.7777778
B63: Wall 4 | C63: =10*30 -> 300 | D63: =Wall_R_value -> 18 | E63: 889.1666667
B64: Ceiling | C64: =30*60 -> 1800 | D64: =Ceiling_R_value -> 38 | E64: 2605.263158
B65: Wall 1 Windows | C65: =3*3 -> 9 | D65: 2.8 | E65: 176.7857143
B66: Wall 2 Windows | C66: =6*3 -> 18 | D66: 2.8 | E66: =(C66-C71)/D66*(T_R-T_O) -> 353.5714286
B67: Wall 3 Windows | C67: =4*4 -> 16 | D67: 2.8 | E67: =(C67-C72)/D67*(T_R-T_O) -> 314.2857143
B68: Wall 4 Windows | C68: =3*3 -> 9 | D68: 2.8 | E68: =(C68-C73)/D68*(T_R-T_O) -> 176.7857143
B69: Ceiling Windows | C69: 0 | D69: 2.8 | E69: =(C69-C74)/D69*(T_R-T_O) -> 0
B70: Ventilation Heat Losses | E70: =C53*V_house*(C39-D39)*D35*0.06243 -> 60223.3607
E71: =SUM(Table18[Heat Flow (BTU/hour)]) -> 69191.16354 | F71: BTU/hr lost
A73: Heat Replacement Cost
B75: Monthly Heat Loss | C75: =E71*365/12*24 -> 50509549.38 | D75: BTU
B76: Replacement Heat | C76: =C75/e_Heat -> 63136936.73 | D76: BTU
B77: Replacement Cost | C77: =C76*k_Rate/10^5 -> 947.0540509
A79: Graphical View | B79: Select Building Type→ | C79: Leaky Building, No Ventilator
A81: Jan Cost | B81: Wall R Value
A82: =C77 -> 947.0540509 | B82: 8 | C82: 12 | D82: 18 | E82: 24 | F82: 32 | G82: 40 | H82: 50
A83: 18 | B83: 1080.777324 | C83: 1024.316386 | D83: 986.6757615 | E83: 967.855449 | F83: 953.7402146 | G83: 945.271074 | H83: 938.4957615
A84: 28 | B84: 1054.667875 | C84: 998.206937 | D84: 960.566312 | E84: 941.7459995 | F84: 927.6307652 | G84: 919.1616245 | H84: 912.386312
A85: 38 | B85: 1042.300241 | C85: 985.8393031 | D85: 948.1986781 | E85: 929.3783656 | F85: 915.2631312 | G85: 906.7939906 | H85: 900.0186781 | I85: Blue box indicates my selection
A86: 48 | B86: 1035.085787 | C86: 978.62485 | D86: 940.984225 | E86: 922.1639125 | F86: 908.0486781 | G86: 899.5795375 | H86: 892.804225
A87: 58 | B87: 1030.359077 | C87: 973.8981393 | D87: 936.2575143 | E87: 917.4372018 | F87: 903.3219674 | G87: 894.8528268 | H87: 888.0775143
A110: Title | B110: Maximum Monthly Heating Bill Versus Ceiling And Wall Insulation
A111: X Axis | B111: Wall R Value
A112: Y Axis | B112: Monthly Bill ($)
B113: ="ACH50 = "&ACH50_&" per hour"&CHAR(10)&"Recovery Efficiency = "&e_Rec*100&"%" -> ACH50 = 10 per hour Recovery Efficiency = 0%
B114: =C79 -> Leaky Building, No Ventilator

Sheet ScenarioList
A1: FROM: | B1: Mark Biegert
A2: SUBJECT: | B2: Scenario List
A3: DATE: | B3: 2016-10-26
B5: Scenarios
B6: Leaky Building, No Ventilator
B7: Medium Tight Building, No Ventilator
B8: Tight Building, Ventilator with No Heat Recovery
B9: Tight Building, Ventilator with Heat Recovery

Sheet Cross_Check
A1: FROM: | B1: Mark Biegert
A2: SUBJECT: | B2: Verify Calculation of Key Parameters
A3: DATE: | B3: 2016-10-26
A6: Constants
B8: Constant | C8: Symbol | D8: Value | E8: Unit
B9: Universal Gas Constant | C9: R_d | D9: 8.314472 | E9: J/mol K
B10: Molar Mass of Air | C10: MW_air | D10: 28.9664 | E10: gm/mol
B11: Molar Mass of H2O | C11: MW_H2O | D11: 18.01528 | E11: gm/mol
B12: Air Pressure | C12: p_Air | D12: =OFFSET(A49,B45,0) -> 1 | E12: atm
B13: Epsilon | C13: eps | D13: =MW_H2O/MW_air -> 0.621937141 | E13: unitless
A15: Simulation Parameters
B17: Parameters | C17: Symbol | D17: Value | E17: Unit
B18: Room Temperature | C18: T_R | D18: =OFFSET(A49,B45,2) -> 53 | E18: °F
B19: Outside Temperature | C19: T_O | D19: 10 | E19: °F
B20: Room Humidity | C20: RH_R | D20: =OFFSET(A49,B45,1) -> 0.49 | E20: unitless
B21: Outside Humidity | C21: RH_O | D21: 0.1 | E21: unitless
B22: Recovery Efficiency | C22: e_Rec | D22: 0.7 | E22: unitless
B23: Heating Efficiency | C23: e_Heat | D23: 0.8 | E23: unitless
B24: Air Chg. Rate @ 50Pa | C24: ACH50 | D24: 1 | E24: per hour
B25: House Area | C25: A_House | D25: 2500 | E25: ft2
B26: Ceiling Height | C26: h_ceiling | D26: 8.22857 | E26: ft
B27: Natural Gas Cost | C27: k_Rate | D27: 1.5 | E27: per therm
B28: Fan Flow Rate | C28: F_fan | D28: 100 | E28: cfm
B29: Vent. Air Chg. Rate | C29: ACH_v | D29: 0.35 | E29: per hour
A31: Air Characteristics
B33: Parameter | C33: House | D33: Outside | E33: Units
B34: Dry Air Density | C34: =CONVERT(p_Air,"atm","Pa")*MW_air/(R_d*((T_R-32)*5/9+273.15))*0.001 -> 1.239398772 | D34: =CONVERT(p_Air,"atm","Pa")*MW_air/(R_d*((T_O-32)*5/9+273.15))*0.001 -> 1.352870246 | E34: gm/cm3
B35: Sat Vapor Pressure | C35: =6.1094*EXP(17.625*CONVERT(T_R,"F","C")/(243.04+CONVERT(T_R,"F","C")))*100 -> 1369.635553 | D35: =6.1094*EXP(17.625*CONVERT(T_O,"F","C")/(243.04+CONVERT(T_O,"F","C")))*100 -> 240.2602873 | E35: Pa
B36: Vapor Pressure @ Dew | C36: =6.1094*EXP(17.625*C38/(243.04+C38))*100 -> 671.1214211 | D36: =6.1094*EXP(17.625*D38/(243.04+D38))*100 -> 24.02602873 | E36: Pa
B37: Moist Air Density | C37: =C34*(1-0.378*RH_R*C35/CONVERT(p_Air,"atm","Pa")) -> 1.236295732 | D37: =D34*(1-0.378*RH_O*D35/CONVERT(p_Air,"atm","Pa")) -> 1.352748987 | E37: gm/cm3
B38: Dew Point Temperature | C38: =-(5354475*(T_R-32)*5/9+73835552*LN(RH_R)+303800*(T_R-32)*5/9*LN(RH_R))/ (303800*LN(RH_R)+1250*(T_R-32)*5/9*LN(RH_R)-5354475) -> 1.302485069 | D38: =-(5354475*(T_O-32)*5/9+73835552*LN(RH_O)+303800*(T_O-32)*5/9*LN(RH_O))/ (303800*LN(RH_O)+1250*(T_O-32)*5/9*LN(RH_O)-5354475) -> -37.69948199 | E38: °C
B39: Specific Humidity | C39: =eps*C36/(CONVERT(p_Air,"atm","Pa")-(1-eps)*C36) -> 0.004129712842 | D39: =eps*D36/(CONVERT(p_Air,"atm","Pa")-(1-eps)*D36) -> 0.0001474860033 | E39: unitless
B40: Moist Air Enthalpy | C40: =1.006*(T_R-32)*5/9+C39*(2501+1.755*(T_R-32)*5/9) -> 22.14963436 | D40: =1.006*(T_O-32)*5/9+D39*(2501+1.755*(T_O-32)*5/9) -> -11.92985664 | E40: kJ/kg
C42: =OFFSET(C37,B46,0) -> 1.236295732
A43: Test Cases
A45: Parameter Select | B45: 0
A46: Output Select | B46: 0 | F46: My Values | K46: Web Calculator Values
F47: Moist Density | G47: Dewpoint | H47: Humidity Ratio | I47: Enthalpy | K47: Moist Density | L47: Dewpoint | M47: Humi.Ratio | N47: Enthalpy
A48: Pressure (atm) | B48: Rel. Humidity (%) | C48: Temperature (°F) | D48: Temperature (°C) | E48: =C42 -> 1.236295732 | F48: 0 | G48: 1 | H48: 2 | I48: 3
A49: 1 | B49: 0.49 | C49: 53 | D49: =CONVERT(C49,"F","C") -> 11.66666667 | E49: 0 | F49: 1.236295732 | G49: 1.302485069 | H49: 0.004129712842 | I49: 22.14963436 | K49: 1.24 | L49: 1.31 | M49: 0.0042 | N49: 22.22
A50: 1 | B50: 0.22 | C50: 49 | D50: =CONVERT(C50,"F","C") -> 9.444444444 | E50: 1 | F50: 1.247933998 | G50: -11.24261623 | H50: 0.00159659495 | I50: 13.52065864 | K50: 1.25 | L50: -9.99 | M50: 0.0016 | N50: 13.53
A51: 1 | B51: 0.26 | C51: 51 | D51: 10.55555556 | E51: 2 | F51: 1.242717243 | G51: -8.174749937 | H51: 0.002033028188 | I51: 15.74115424 | K51: 1.24 | L51: -7.26 | M51: 0.002 | N51: 15.75
A52: 1 | B52: 0.41 | C52: 90 | D52: 32.22222222 | E52: 3 | F52: 1.147468726 | G52: 17.30596954 | H52: 0.01219125507 | I52: 63.59529996 | K52: 1.15 | L52: 17.32 | M52: 0.0124 | N52: 64.05
A53: 1 | B53: 0.57 | C53: 80 | D53: 26.66666667 | E53: 4 | F53: 1.168653471 | G53: 17.44733142 | H53: 0.01230141559 | I53: 58.16821331 | K53: 1.17 | L53: 17.47 | M53: 0.0125 | N53: 58.65
A54: 1 | B54: 0.21 | C54: 75 | D54: 23.88888889 | E54: 5 | F54: 1.185647202 | G54: 0.2306058457 | H54: 0.003822013569 | I54: 33.75131608 | K54: 1.19 | L54: 0.24 | M54: 0.0038 | N54: 33.83
A55: 1 | B55: 0.37 | C55: 86 | D55: 30 | E55: 6 | F55: 1.157635203 | G55: 13.72743805 | H55: 0.009678360747 | I55: 54.89514592 | K55: 1.16 | L55: 13.76 | M55: 0.0098 | N55: 55.2
A56: 1 | B56: 0.3 | C56: 69 | D56: 20.55555556 | E56: 7 | F56: 1.198640477 | G56: 2.373369536 | H56: 0.004458916773 | I56: 31.99149516 | K56: 1.2 | L56: 2.38 | M56: 0.0045 | N56: 32.07
A57: 1 | B57: 0.6 | C57: 83 | D57: 28.33333333 | E57: 8 | F57: 1.160798431 | G57: 19.8264947 | H57: 0.01429273789 | I57: 64.96017719 | K57: 1.16 | L57: 19.84 | M57: 0.0145 | N57: 65.59
A58: 1 | B58: 0.7 | C58: 87 | D58: 30.55555556 | E58: 9 | F58: 1.149039068 | G58: 24.46157449 | H58: 0.01900970737 | I58: 79.30156259 | K58: 1.15 | L58: 24.46 | M58: 0.0194 | N58: 80.39
F61: Web Calculator 2 | K61: Errors
K63: % | L63: ABS | M63: % | N63: %
E64: 0 | F64: 1.231666 | G64: =CONVERT(34.38,"F","C") -> 1.322222222 | H64: =29.2/7000 -> 0.004171428571 | I64: 17.25 | K64: =(F49-K49)/K49 -> -0.002987312771 | L64: =(G49-L49) -> -0.007514931303 | M64: =(H49-M49)/M49 -> -0.01673503756 | N64: =(I49-N49)/N49 -> -0.003166770678
E65: 1 | F65: 1.247 | G65: =CONVERT(14.03,"F","C") -> -9.983333333 | H65: =11.26/7000 -> 0.001608571429 | I65: 13.51 | K65: =(F50-K50)/K50 -> -0.001652801461 | L65: =(G50-L50) -> -1.252616227 | M65: =(H50-M50)/M50 -> -0.002128156242 | N65: =(I50-N50)/N50 -> -0.0006904181529
E66: 2 | F66: 1.241 | G66: =CONVERT(18.98,"F","C") -> -7.233333333 | H66: =14.34/7000 -> 0.002048571429 | I66: 14.47 | K66: 0.00219132514 | L66: -0.9147499366 | M66: 0.0165140942 | N66: -0.0005616358569
E67: 3 | F67: 1.134 | G67: =CONVERT(63.15,"F","C") -> 17.30555556 | H67: =86.99/7000 -> 0.01242714286 | I67: 35.298 | K67: -0.002201107578 | L67: -0.01403046483 | M67: -0.01683426839 | N67: -0.007099141842
E68: 4 | F68: 1.15445 | G68: =CONVERT(63.42,"F","C") -> 17.45555556 | H68: =87.79/7000 -> 0.01254142857 | I68: 32.96 | K68: -0.001150879103 | L68: -0.02266858089 | M68: -0.01588675257 | N68: -0.008214606747
E69: 5 | F69: 1.181 | G69: =CONVERT(32.47,"F","C") -> 0.2611111111 | H69: =27.04/7000 -> 0.003862857143 | I69: 22.24 | K69: -0.003657813844 | L69: -0.009394154312 | M69: 0.005793044581 | N69: -0.002325862305
E70: 6 | F70: 1.1466 | G70: =CONVERT(56.72,"F","C") -> 13.73333333 | H70: =68.88/7000 -> 0.00984 | I70: 31.47 | K70: -0.002038617994 | L70: -0.0325619509 | M70: -0.01241216863 | N70: -0.00552271879
E71: 7 | F71: 1.193 | G71: =CONVERT(36.32,"F","C") -> 2.4 | H71: =31.56/7000 -> 0.004508571429 | I71: 14.696 | K71: -0.001132935997 | L71: -0.006630463977 | M71: -0.009129606096 | N71: -0.002447921433
E72: 8 | F72: 1.201 | G72: =CONVERT(67.57,"F","C") -> 19.76111111 | H72: =101.76/7000 -> 0.01453714286 | I72: 35.892 | K72: 0.0006883028162 | L72: -0.01350530359 | M72: -0.01429393868 | N72: -0.009602421321
E73: 9 | F73: 1.127 | G73: =CONVERT(76.03,"F","C") -> 24.46111111 | H73: =136.6/7000 -> 0.01951428571 | I73: 42.35 | K73: =(F58-K58)/K58 -> -0.0008355932914 | L73: 0.001574493784 | M73: =(H58-M58)/M58 -> -0.02011817657 | N73: =(I58-N58)/N58 -> -0.01353946274
